fUSD/lending_fUSD_20240318
["ID","MTS","AMOUNT","RATE_DAILY","PERIOD"]
[319422235,1710726652649,-500.0,0.0002251,2]
[319422236,1710726652658,-500.0,0.0002251,2]
[319422237,1710726652667,-500.0,0.0002251,2]
[319422238,1710726652676,-500.0,0.0002251,2]
[319422239,1710726652686,-500.0,0.0002251,2]
[319422240,1710726652695,-500.0,0.0002251,2]
[319422241,1710726652704,-532.86024368,0.0002251,2]
[319422242,1710726652714,-500.0,0.0002251,2]
[319422243,1710726652723,-500.0,0.0002251,2]
[319422244,1710726652733,-500.0,0.0002251,2]
[319422245,1710726652742,-563.53,0.0002251,2]
[319422246,1710726652751,-563.53,0.0002251,2]
[319422247,1710726652761,-743.99,0.0002251,2]
[319422248,1710726652770,-500.0,0.0002251,2]
[319422249,1710726652779,-563.53,0.0002251,2]
[319422250,1710726652789,-500.0,0.0002251,2]
[319422251,1710726652798,-500.0,0.0002251,2]
[319422252,1710726652808,-500.0,0.0002251,2]
[319422253,1710726652817,-563.53,0.0002251,2]
[319422254,1710726652827,-743.99,0.0002251,2]
[319422255,1710726652837,-743.99,0.0002251,2]
[319422256,1710726652846,-743.99,0.0002251,2]
[319422257,1710726652856,-500.0,0.0002251,2]
[319422258,1710726652866,-500.0,0.0002251,2]
[319422259,1710726652878,-500.0,0.0002251,2]
[319422260,1710726652887,-500.0,0.0002251,2]
[319422261,1710726652896,-500.0,0.0002251,2]
[319422262,1710726652905,-500.0,0.0002251,2]
[319422263,1710726652916,-500.0,0.0002251,2]
[319422264,1710726652925,-500.0,0.0002251,2]
[319422265,1710726652934,-500.0,0.0002251,2]
[319422266,1710726652944,-500.0,0.0002251,2]
[319422267,1710726652954,-500.0,0.0002251,2]
[319422268,1710726652963,-500.0,0.0002251,2]
[319422269,1710726652973,-500.0,0.0002251,2]
[319422270,1710726652982,-500.0,0.0002251,2]
[319422271,1710726652992,-500.0,0.0002251,2]
[319422272,1710726653002,-500.0,0.0002251,2]
[319422273,1710726653011,-500.0,0.0002251,2]
[319422274,1710726653020,-500.0,0.0002251,2]
[319422275,1710726653030,-500.0,0.0002251,2]
[319422276,1710726653039,-500.0,0.0002251,2]
[319422277,1710726653049,-713.34,0.0002251,2]
[319422278,1710726653058,-500.0,0.0002251,2]
[319422279,1710726653067,-500.0,0.0002251,2]
[319422280,1710726653076,-713.34,0.0002251,2]
[319422281,1710726653086,-500.0,0.0002251,2]
[319422282,1710726653095,-500.0,0.0002251,2]
[319422283,1710726653104,-713.34,0.0002251,2]
[319422284,1710726653113,-713.34,0.0002251,2]
[319422285,1710726653122,-500.0,0.0002251,2]
[319422286,1710726653132,-500.0,0.0002251,2]
[319422287,1710726653142,-500.0,0.0002251,2]
[319422288,1710726653151,-537.32352863,0.0002251,2]
[319422289,1710726653161,-500.0,0.0002251,2]
[319422290,1710726653171,-500.0,0.0002251,2]
[319422291,1710726653181,-500.0,0.0002251,2]
[319422292,1710726653191,-500.0,0.0002251,2]
[319422293,1710726653201,-500.0,0.0002251,2]
[319422294,1710726653211,-500.0,0.0002251,2]
[319422295,1710726653220,-500.0,0.0002251,2]
[319422296,1710726653230,-500.0,0.0002251,2]
[319422297,1710726653239,-500.0,0.0002251,2]
[319422298,1710726653249,-500.0,0.0002251,2]
[319422299,1710726653259,-500.0,0.0002251,2]
[319422300,1710726653269,-500.0,0.0002251,2]
[319422301,1710726653278,-500.0,0.0002251,2]
[319422302,1710726653288,-500.0,0.0002251,2]
[319422303,1710726653297,-500.0,0.0002251,2]
[319422304,1710726653306,-500.0,0.0002251,2]
[319422305,1710726653315,-500.0,0.0002251,2]
[319422306,1710726653326,-500.0,0.0002251,2]
[319422307,1710726653335,-500.0,0.0002251,2]
[319422308,1710726653345,-500.0,0.0002251,2]
[319422309,1710726653354,-500.0,0.0002251,2]
[319422310,1710726653363,-500.0,0.0002251,2]
[319422311,1710726653373,-500.0,0.0002251,2]
[319422312,1710726653382,-500.0,0.0002251,2]
[319422313,1710726653391,-500.0,0.0002251,2]
[319422314,1710726653401,-500.0,0.0002251,2]
[319422315,1710726653411,-500.0,0.0002251,2]
[319422316,1710726653421,-500.0,0.0002251,2]
[319422317,1710726653430,-500.0,0.0002251,2]
[319422318,1710726653439,-500.0,0.0002251,2]
[319422319,1710726653448,-500.0,0.0002251,2]
[319422320,1710726653458,-500.0,0.0002251,2]
[319422321,1710726653467,-500.0,0.0002251,2]
[319422322,1710726653477,-500.0,0.0002251,2]
[319422323,1710726653486,-500.0,0.0002251,2]
[319422324,1710726653495,-500.0,0.0002251,2]
[319422325,1710726653505,-500.0,0.0002251,2]
[319422326,1710726653515,-500.0,0.0002251,2]
[319422327,1710726653525,-500.0,0.0002251,2]
[319422328,1710726653535,-500.0,0.0002251,2]
[319422329,1710726653544,-500.0,0.0002251,2]
[319422330,1710726653554,-500.0,0.0002251,2]
[319422331,1710726653563,-500.0,0.0002251,2]
[319422332,1710726653573,-500.0,0.0002251,2]
[319422333,1710726653583,-500.0,0.0002251,2]
[319422334,1710726653592,-500.0,0.0002251,2]
[319422335,1710726653602,-500.0,0.0002251,2]
[319422336,1710726653611,-500.0,0.0002251,2]
[319422337,1710726653620,-500.0,0.0002251,2]
[319422338,1710726653629,-500.0,0.0002251,2]
[319422339,1710726653639,-500.0,0.0002251,2]
[319422340,1710726653649,-500.0,0.0002251,2]
[319422341,1710726653658,-500.0,0.0002251,2]
[319422342,1710726653668,-1734.88,0.0002251,2]
[319422343,1710726653677,-501.66964288,0.0002251,2]
[319422344,1710726653687,-1734.88,0.0002251,2]
[319422345,1710726653697,-1734.88,0.0002251,2]
[319422346,1710726653706,-500.0,0.0002251,2]
[319422347,1710726653716,-1734.88,0.0002251,2]
[319422348,1710726653725,-500.0,0.0002251,2]
[319422349,1710726653735,-500.0,0.0002251,2]
[319422350,1710726653744,-500.0,0.0002251,2]
[319422351,1710726653754,-500.0,0.0002251,2]
[319422352,1710726653764,-504.15365089,0.0002251,2]
[319422353,1710726653774,-503.11428784,0.0002251,2]
[319422354,1710726653783,-850.61,0.0002251,2]
[319422355,1710726653793,-850.61,0.0002251,2]
[319422356,1710726653803,-850.61,0.0002251,2]
[319422357,1710726653812,-850.61,0.0002251,2]
[319422358,1710726653822,-500.0,0.0002251,2]
[319422359,1710726653833,-527.52638305,0.0002251,2]
[319422360,1710726653843,-500.0,0.0002251,2]
[319422361,1710726653852,-500.0,0.0002251,2]
[319422362,1710726653861,-500.0,0.0002251,2]
[319422363,1710726653871,-500.0,0.0002251,2]
[319422364,1710726653884,-500.0,0.0002251,2]
[319422365,1710726653894,-500.0,0.0002251,2]
[319422366,1710726653902,-504.18460499,0.0002251,2]
[319422367,1710726653913,-500.0,0.0002251,2]
[319422368,1710726653922,-500.0,0.0002251,2]
[319422369,1710726653932,-500.0,0.0002251,2]
[319422370,1710726653943,-500.0,0.0002251,2]
[319422371,1710726653954,-500.0,0.0002251,2]
[319422372,1710726653964,-500.0,0.0002251,2]
[319422373,1710726653973,-500.0,0.0002251,2]
[319422374,1710726653983,-500.0,0.0002251,2]
[319422375,1710726653993,-500.0,0.0002251,2]
[319422376,1710726654003,-500.0,0.0002251,2]
[319422377,1710726654012,-500.0,0.0002251,2]
[319422378,1710726654022,-570.81,0.0002251,2]
[319422379,1710726654032,-640.487866,0.0002251,2]
[319422380,1710726654041,-570.81,0.0002251,2]
[319422381,1710726654051,-500.0,0.0002251,2]
[319422382,1710726654060,-570.81,0.0002251,2]
[319422383,1710726654070,-500.0,0.0002251,2]
[319422384,1710726654081,-570.81,0.0002251,2]
[319422385,1710726654091,-500.0,0.0002251,2]
[319422386,1710726654101,-500.0,0.0002251,2]
[319422387,1710726654110,-500.0,0.0002251,2]
[319422388,1710726654119,-500.0,0.0002251,2]
[319422389,1710726654129,-500.0,0.0002251,2]
[319422390,1710726654139,-500.0,0.0002251,2]
[319422391,1710726654149,-500.0,0.0002251,2]
[319422392,1710726654158,-500.0,0.0002251,2]
[319422393,1710726654168,-500.0,0.0002251,2]
[319422394,1710726654177,-500.0,0.0002251,2]
[319422395,1710726654187,-500.0,0.0002251,2]
[319422396,1710726654197,-500.0,0.0002251,2]
[319422397,1710726654206,-580.35918107,0.0002251,2]
[319422398,1710726654216,-500.0,0.0002251,2]
[319422399,1710726654226,-500.0,0.0002251,2]
[319422400,1710726654235,-500.0,0.0002251,2]
[319422401,1710726654245,-500.0,0.0002251,2]
[319422402,1710726654255,-500.0,0.0002251,2]
[319422403,1710726654265,-500.0,0.0002251,2]
[319422404,1710726654274,-500.0,0.0002251,2]
[319422405,1710726654284,-500.0,0.0002251,2]
[319422406,1710726654294,-500.0,0.0002251,2]
[319422407,1710726654303,-500.0,0.0002251,2]
[319422408,1710726654313,-517.42392893,0.0002251,2]
[319422409,1710726654322,-500.0,0.0002251,2]
[319422410,1710726654333,-500.0,0.0002251,2]
[319422411,1710726654342,-500.0,0.0002251,2]
[319422412,1710726654351,-500.0,0.0002251,2]
[319422413,1710726654361,-500.0,0.0002251,2]
[319422414,1710726654370,-500.0,0.0002251,2]
[319422415,1710726654379,-1978.28,0.0002251,2]
[319422416,1710726654389,-500.0,0.0002251,2]
[319422417,1710726654398,-1978.28,0.0002251,2]
[319422418,1710726654407,-500.0,0.0002251,2]
[319422419,1710726654416,-1978.28,0.0002251,2]
[319422420,1710726654426,-1978.28,0.0002251,2]
[319422421,1710726654435,-500.0,0.0002251,2]
[319422422,1710726654444,-500.0,0.0002251,2]
[319422423,1710726654454,-500.0,0.0002251,2]
[319422424,1710726654463,-500.0,0.0002251,2]
[319422425,1710726654473,-500.0,0.0002251,2]
[319422426,1710726654483,-500.0,0.0002251,2]
[319422427,1710726654492,-500.0,0.0002251,2]
[319422428,1710726654502,-500.0,0.0002251,2]
[319422429,1710726654512,-500.0,0.0002251,2]
[319422430,1710726654644,-500.0,0.0002251,2]
[319422431,1710726654653,-500.0,0.0002251,2]
[319422432,1710726654663,-500.0,0.0002251,2]
[319422433,1710726654673,-155.79688398,0.0002251,2]
[319422434,1710726654682,-500.0,0.0002251,2]
[319422435,1710726654691,-500.0,0.0002251,2]
[319422436,1710726654700,-500.0,0.0002251,2]
[319422437,1710726654710,-557.54363315,0.0002251,2]
[319422438,1710726654719,-500.0,0.0002251,2]
[319422439,1710726654729,-500.0,0.0002251,2]
[319422440,1710726654738,-500.0,0.0002251,2]
[319422441,1710726654748,-500.0,0.0002251,2]
[319422442,1710726654757,-500.0,0.0002251,2]
[319422443,1710726654767,-407.58366753,0.0002251,2]
[319422444,1710726654776,-500.0,0.0002251,2]
[319422445,1710726654785,-500.0,0.0002251,2]
[319422446,1710726654794,-500.0,0.0002251,2]
[319422447,1710726654804,-500.0,0.0002251,2]
[319422448,1710726654813,-276.98640516,0.0002251,2]
[319422449,1710726654822,-500.0,0.0002251,2]
[319422450,1710726654832,-500.0,0.0002251,2]
[319422451,1710726654842,-500.0,0.0002251,2]
[319422452,1710726654851,-500.0,0.0002251,2]
[319422453,1710726654860,-500.0,0.0002251,2]
[319422454,1710726654870,-500.0,0.0002251,2]
[319422455,1710726654884,-500.0,0.0002251,2]
[319422456,1710726654894,-500.0,0.0002251,2]
[319422457,1710726654903,-500.0,0.0002251,2]
[319422458,1710726654912,-500.0,0.0002251,2]
[319422459,1710726654922,-500.0,0.0002251,2]
[319422460,1710726654931,-205.35979174,0.0002251,2]
[319422461,1710726654940,-503.69540137,0.0002251,2]
[319422462,1710726654950,-500.0,0.0002251,2]
[319422463,1710726654960,-500.0,0.0002251,2]
[319422464,1710726654970,-500.0,0.0002251,2]
[319422465,1710726654980,-500.0,0.0002251,2]
[319422466,1710726654989,-500.0,0.0002251,2]
[319422467,1710726654999,-500.0,0.0002251,2]
[319422468,1710726655008,-500.0,0.0002251,2]
[319422469,1710726655017,-500.0,0.0002251,2]
[319422470,1710726655027,-500.0,0.0002251,2]
[319422471,1710726655036,-500.0,0.0002251,2]
[319422472,1710726655045,-500.0,0.0002251,2]
[319422473,1710726655055,-500.0,0.0002251,2]
[319422474,1710726655064,-500.0,0.0002251,2]
[319422475,1710726655073,-500.0,0.0002251,2]
[319422476,1710726655084,-500.0,0.0002251,2]
[319422477,1710726655093,-500.0,0.0002251,2]
[319422478,1710726655102,-500.0,0.0002251,2]
[319422479,1710726655111,-500.0,0.0002251,2]
[319422480,1710726655120,-500.0,0.0002251,2]
[319422481,1710726655129,-509.2276587,0.0002251,2]
[319422482,1710726655139,-512.00403768,0.0002251,2]
[319422483,1710726655148,-500.0,0.0002251,2]
[319422484,1710726655157,-500.0,0.0002251,2]
[319422485,1710726655213,-500.0,0.0002251,2]
[319422486,1710726655224,-500.0,0.0002251,2]
[319422487,1710726655235,-500.0,0.0002251,2]
[319422488,1710726655245,-500.0,0.0002251,2]
[319422489,1710726655255,-500.0,0.0002251,2]
[319422490,1710726655265,-500.0,0.0002251,2]
[319422491,1710726655276,-631.14578789,0.0002251,2]
[319422492,1710726655287,-500.0,0.0002251,2]
[319422493,1710726655298,-500.0,0.0002251,2]
[319422494,1710726655308,-153.51979008,0.0002251,2]
[319422495,1710726655318,-583.89,0.0002251,2]
[319422496,1710726655329,-583.89,0.0002251,2]
[319422497,1710726655339,-583.89,0.0002251,2]
[319422498,1710726655350,-583.89,0.0002251,2]
[319422499,1710726655360,-500.0,0.0002251,2]
[319422500,1710726655370,-500.0,0.0002251,2]
[319422501,1710726655381,-500.0,0.0002251,2]
[319422502,1710726655392,-500.0,0.0002251,2]
[319422503,1710726655403,-938.25,0.0002251,2]
[319422504,1710726655413,-938.25,0.0002251,2]
[319422505,1710726655423,-500.0,0.0002251,2]
[319422506,1710726655433,-938.25,0.0002251,2]
[319422507,1710726655443,-200.4049965,0.0002251,2]
[319422508,1710726655453,-938.25,0.0002251,2]
[319422509,1710726655462,-507.4443685,0.0002251,2]
[319422510,1710726655472,-505.78113172,0.0002251,2]
[319422511,1710726655482,-501.52521685,0.0002251,2]
[319422512,1710726655492,-506.92189066,0.0002251,2]
[319422513,1710726655502,-500.0,0.0002251,2]
[319422514,1710726655512,-500.0,0.0002251,2]
[319422515,1710726655523,-500.0,0.0002251,2]
[319422516,1710726655533,-500.0,0.0002251,2]
[319422517,1710726655544,-170.80383013,0.0002251,2]
[319422518,1710726655554,-516.18593501,0.0002251,2]
[319422519,1710726655565,-500.0,0.0002251,2]
[319422520,1710726655575,-500.0,0.0002251,2]
[319422521,1710726655587,-500.0,0.0002251,2]
[319422522,1710726655597,-500.0,0.0002251,2]
[319422523,1710726655608,-500.0,0.0002251,2]
[319422524,1710726655618,-507.1545764,0.0002251,2]
[319422525,1710726655628,-443.88269735,0.0002251,2]
[319422526,1710726655638,-500.0,0.0002251,2]
[319422527,1710726655649,-500.0,0.0002251,2]
[319422528,1710726655658,-500.0,0.0002251,2]
[319422529,1710726655668,-168.37172712,0.0002251,2]
[319422530,1710726655678,-500.0,0.0002251,2]
[319422531,1710726655688,-500.0,0.0002251,2]
[319422532,1710726655698,-500.0,0.0002251,2]
[319422533,1710726655707,-500.0,0.0002251,2]
[319422534,1710726655717,-501.55600779,0.0002251,2]
[319422535,1710726655728,-500.0,0.0002251,2]
[319422536,1710726655737,-500.0,0.0002251,2]
[319422537,1710726655747,-510.55955198,0.0002251,2]
[319422538,1710726655758,-500.0,0.0002251,2]
[319422539,1710726655768,-500.0,0.0002251,2]
[319422540,1710726655777,-500.0,0.0002251,2]
[319422541,1710726655787,-500.0,0.0002251,2]
[319422542,1710726655796,-500.0,0.0002251,2]
[319422543,1710726655806,-500.0,0.0002251,2]
[319422544,1710726655817,-500.0,0.0002251,2]
[319422545,1710726655826,-758.32,0.0002251,2]
[319422546,1710726655836,-500.0,0.0002251,2]
[319422547,1710726655845,-758.32,0.0002251,2]
[319422548,1710726655856,-500.0,0.0002251,2]
[319422549,1710726655865,-758.32,0.0002251,2]
[319422550,1710726655876,-500.0,0.0002251,2]
[319422551,1710726655887,-504.88823274,0.0002251,2]
[319422552,1710726655897,-758.32,0.0002251,2]
[319422553,1710726655906,-500.0,0.0002251,2]
[319422554,1710726655916,-500.0,0.0002251,2]
[319422555,1710726655926,-500.0,0.0002251,2]
[319422556,1710726655936,-500.0,0.0002251,2]
[319422557,1710726655946,-501.0127448,0.0002251,2]
[319422558,1710726655957,-641.41,0.0002251,2]
[319422559,1710726655967,-500.0,0.0002251,2]
[319422560,1710726655976,-641.41,0.0002251,2]
[319422561,1710726655986,-641.41,0.0002251,2]
[319422562,1710726655996,-500.0,0.0002251,2]
[319422563,1710726656006,-641.41,0.0002251,2]
[319422564,1710726656016,-500.0,0.0002251,2]
[319422565,1710726656026,-500.0,0.0002251,2]
[319422566,1710726656037,-500.0,0.0002251,2]
[319422567,1710726656048,-500.0,0.0002251,2]
[319422568,1710726656058,-500.0,0.0002251,2]
[319422569,1710726656068,-500.0,0.0002251,2]
[319422570,1710726656078,-518.35616199,0.0002251,2]
[319422571,1710726656087,-504.92682623,0.0002251,2]
[319422572,1710726656097,-500.0,0.0002251,2]
[319422573,1710726656107,-500.0,0.0002251,2]
[319422574,1710726656118,-500.0,0.0002251,2]
[319422575,1710726656129,-500.0,0.0002251,2]
[319422576,1710726656138,-276.83450502,0.0002251,2]
[319422577,1710726656147,-500.0,0.0002251,2]
[319422578,1710726656157,-500.0,0.0002251,2]
[319422579,1710726656168,-500.0,0.0002251,2]
[319422580,1710726656177,-500.0,0.0002251,2]
[319422581,1710726656187,-500.0,0.0002251,2]
[319422582,1710726656197,-500.0,0.0002251,2]
[319422583,1710726656206,-500.0,0.0002251,2]
[319422584,1710726656215,-500.0,0.0002251,2]
[319422585,1710726656224,-500.0,0.0002251,2]
[319422586,1710726656235,-500.0,0.0002251,2]
[319422587,1710726656244,-500.0,0.0002251,2]
[319422588,1710726656255,-500.0,0.0002251,2]
[319422589,1710726656265,-500.0,0.0002251,2]
[319422590,1710726656274,-500.0,0.0002251,2]
[319422591,1710726656286,-500.0,0.0002251,2]
[319422592,1710726656296,-500.0,0.0002251,2]
[319422593,1710726656305,-150.0,0.00022711,2]
[319422594,1710726656315,-587.46186717,0.00023,2]
[319422595,1710726656326,-950.0,0.00023,3]
[319422596,1710726656337,-999.04,0.00023,2]
[319422597,1710726656347,-1000.0,0.00023,2]
[319422598,1710726656358,-1000.0,0.00023001,2]
[319422599,1710726656369,-150.0,0.0002314,2]
[319422600,1710726656379,-151.0,0.00023179,2]
[319422601,1710726656389,-150.0,0.00023216,2]
[319422602,1710726656399,-155.0,0.00023288,2]
[319422603,1710726656408,-600.0,0.00023298,2]
[319422604,1710726656417,-178.2,0.00023529,2]
[319422605,1710726656426,-3683.47613423,0.0002354,2]
[319422606,1710726656436,-49400.63551019,0.00023566,2]
[319422607,1710726656446,-200.0,0.000236,2]
[319422608,1710726656456,-6968.03193519,0.000236,2]
[319422609,1710726656466,-7814.0,0.000236,2]
[319422610,1710726656476,-155.82473626,0.00023683,2]
[319422611,1710726656486,-150.0,0.0002372,2]
[319422612,1710726656496,-1732.7416809,0.00023785,2]
[319422613,1710726656506,-3000.0,0.000238,2]
[319422614,1710726656517,-4507.0,0.00023864,2]
[319422615,1710726656526,-1040.0,0.00023864,2]
[319422616,1710726656536,-333.0,0.00023864,2]
[319422617,1710726656546,-155.0,0.00024,2]
[319422618,1710726656557,-4507.0,0.0002411,2]
[319422619,1710726656568,-1040.0,0.0002411,2]
[319422620,1710726656577,-333.0,0.0002411,2]
[319422621,1710726656588,-999.04,0.0002412,2]
[319422622,1710726656598,-150.0,0.0002414,2]
[319422623,1710726656608,-150.0,0.00024225,2]
[319422624,1710726656619,-4507.0,0.00024356,2]
[319422625,1710726656628,-1040.0,0.00024356,2]
[319422626,1710726656638,-333.0,0.00024356,2]
[319422627,1710726656649,-408.41,0.00024362,2]
[319422628,1710726656659,-933.34,0.00024362,2]
[319422629,1710726656669,-414.91,0.00024457,2]
[319422630,1710726656679,-150.0,0.00024457,2]
[319422631,1710726656689,-516.7,0.00024457,2]
[319422632,1710726656700,-150.0,0.00024499,2]
[319422633,1710726656710,-350.29,0.00024499,2]
[319422634,1710726656719,-150.0,0.00024499,2]
[319422635,1710726656730,-151.19276636,0.00024516,2]
[319422636,1710726656740,-375.24,0.00024534,2]
[319422637,1710726656750,-500.0,0.00024566,2]
[319422638,1710726656760,-722.05827415,0.00024602,2]
[319422639,1710726656769,-4507.0,0.00024602,2]
[319422640,1710726656779,-1040.0,0.00024602,2]
[319422641,1710726656788,-333.0,0.00024602,2]
[319422642,1710726656799,-1026.0,0.00024605,2]
[319422643,1710726656808,-1807.7,0.00024658,10]
[319422644,1710726656818,-155.0,0.00024658,2]
[319422645,1710726656829,-150.0,0.0002473,2]
[319422646,1710726656839,-4507.0,0.00024848,2]
[319422647,1710726656849,-1040.0,0.00024848,2]
[319422648,1710726656860,-333.0,0.00024848,2]
[319422649,1710726656870,-800.0,0.00024959,2]
[319422650,1710726656884,-155.0,0.00025,2]
[319422651,1710726656894,-866.13187822,0.00025,30]
[319422652,1710726656904,-155.0,0.00025,2]
[319422653,1710726656915,-155.0,0.00025,2]
[319422654,1710726656925,-1018.42220439,0.00025,10]
[319422655,1710726656936,-1000.0,0.00025,3]
[319422656,1710726656945,-1000.0,0.00025,2]
[319422657,1710726656956,-1000.0,0.00025093,2]
[319422658,1710726656966,-4507.0,0.00025094,2]
[319422659,1710726656977,-1040.0,0.00025094,2]
[319422660,1710726656988,-333.0,0.00025094,2]
[319422661,1710726656998,-150.0,0.0002514,2]
[319422662,1710726657017,-150.0,0.00025234,2]
[319422663,1710726657037,-999.04,0.0002524,2]
[319422664,1710726657047,-49400.63551019,0.00025288,2]
[319422665,1710726657058,-1419.933,0.0002533,2]
[319422666,1710726657068,-457.0,0.0002533,2]
[319422667,1710726657079,-1226.0,0.0002533,2]
[319422668,1710726657089,-603.0,0.0002533,2]
[319422669,1710726657099,-435.089,0.0002533,2]
[319422670,1710726657111,-1264.0,0.0002533,2]
[319422671,1710726657121,-278.891,0.0002533,2]
[319422672,1710726657132,-1250.0,0.0002533,2]
[319422673,1710726657142,-1140.412,0.0002533,2]
[319422674,1710726657153,-802.851,0.0002533,2]
[319422675,1710726657164,-160.732,0.0002533,2]
[319422676,1710726657174,-358.131,0.0002533,2]
[319422677,1710726657183,-2421.64,0.0002533,2]
[319422678,1710726657193,-1459.0,0.0002533,2]
[319422679,1710726657203,-213.0,0.0002533,2]
[319422680,1710726657213,-1623.0,0.0002533,2]
[319422681,1710726657223,-37418.865,0.0002533,2]
[319422682,1710726657234,-4762.0,0.0002533,2]
[319422683,1710726657244,-206.0,0.0002533,2]
[319422684,1710726657255,-240.608,0.0002533,2]
[319422685,1710726657265,-250.0,0.0002533,2]
[319422686,1710726657275,-188.0,0.0002533,2]
[319422687,1710726657285,-159.0,0.0002533,2]
[319422688,1710726657295,-159.612,0.0002533,2]
[319422689,1710726657305,-5669.0,0.0002533,2]
[319422690,1710726657315,-250.0,0.0002533,2]
[319422691,1710726657326,-165.084,0.0002533,2]
[319422692,1710726657336,-1044.0,0.0002533,2]
[319422693,1710726657346,-150.487,0.0002533,2]
[319422694,1710726657355,-150.134,0.0002533,2]
[319422695,1710726657366,-152.121,0.0002533,2]
[319422696,1710726657378,-4507.0,0.0002534,2]
[319422697,1710726657389,-1040.0,0.0002534,2]
[319422698,1710726657399,-333.0,0.0002534,2]
[319422699,1710726657409,-812.0,0.000255,2]
[319422700,1710726657418,-2000.0,0.000255,2]
[319422701,1710726657427,-1732.7416809,0.0002558,2]
[319422702,1710726657436,-600.0,0.00025627,120]
[319422703,1710726657447,-150.0,0.00025739,2]
[319422704,1710726657458,-880.667834,0.000258,2]
[319422705,1710726657467,-336.799313,0.000258,2]
[319422706,1710726657478,-156.48553528,0.00025811,2]
[319422707,1710726657488,-151.19276636,0.00025815,2]
[319422708,1710726657499,-151.9605948,0.00025859,2]
[319422709,1710726657509,-1026.0,0.000259,2]
[319422710,1710726657519,-867.59829111,0.00026,2]
[319422711,1710726657529,-155.0,0.00026028,2]
[319422712,1710726657539,-150.0,0.0002614,2]
[319422713,1710726657551,-150.0,0.00026244,2]
[319422714,1710726657561,-999.04,0.0002636,2]
[319422715,1710726657571,-156.48553528,0.00026427,2]
[319422716,1710726657582,-1000.0,0.000265,2]
[319422717,1710726657592,-3000.0,0.000266,2]
[319422718,1710726657602,-500.0,0.00026699,2]
[319422719,1710726657612,-500.0,0.00026699,2]
[319422720,1710726657622,-500.0,0.00026699,2]
[319422721,1710726657633,-500.0,0.00026699,2]
[319422722,1710726657642,-500.0,0.00026699,2]
[319422723,1710726657652,-1073.68,0.00026699,2]
[319422724,1710726657662,-500.0,0.00026699,2]
[319422725,1710726657672,-508.35409962,0.00026699,2]
[319422726,1710726657682,-500.0,0.00026699,2]
[319422727,1710726657692,-500.0,0.00026699,2]
[319422728,1710726657703,-500.0,0.00026699,2]
[319422729,1710726657713,-563.53,0.00026699,2]
[319422730,1710726657723,-743.99,0.00026699,2]
[319422731,1710726657855,-500.0,0.00026699,2]
[319422732,1710726657865,-500.0,0.00026699,2]
[319422733,1710726657878,-500.0,0.00026699,2]
[319422734,1710726657890,-500.0,0.00026699,2]